[Event "Titled Tuesday Blitz May 10 Early 2022"]
[White "Sapunov, Evgeny"]
[Black "Shimanov, Aleksandr"]
[WhiteFideId "4126661"]
[BlackFideId "4198603"]
[WhiteElo "2470"]
[BlackElo "2605"]
[Result "1-0"]
[Round "11"]
[TimeControl "180+1"]
[Date "2022.05.10"]
[WhiteClock "0:00:09"]
[BlackClock "0:00:05"]

1. c4 {[%clk 0:02:58]}  e5 {[%clk 0:02:59]} 2. Nf3 {[%clk 0:02:57]}  Nc6 {[%clk 0:02:58]} 3. Nc3 {[%clk 0:02:57]}  Nf6 {[%clk 0:02:57]} 4. e3 {[%clk 0:02:58]}  Bb4 {[%clk 0:02:56]} 5. Qc2 {[%clk 0:02:58]}  Bxc3 {[%clk 0:02:56]} 6. Qxc3 {[%clk 0:02:58]}  Qe7 {[%clk 0:02:56]} 7. a3 {[%clk 0:02:59]}  O-O {[%clk 0:02:47]} 8. d3 {[%clk 0:02:58]}  a5 {[%clk 0:02:46]} 9. b3 {[%clk 0:02:49]}  d5 {[%clk 0:02:40]} 10. cxd5 {[%clk 0:02:49]}  Nxd5 {[%clk 0:02:41]} 11. Qc2 {[%clk 0:02:49]}  Be6 {[%clk 0:02:36]} 12. Bb2 {[%clk 0:02:48]}  f6 {[%clk 0:02:36]} 13. Be2 {[%clk 0:02:49]}  Qf7 {[%clk 0:02:34]} 14. O-O {[%clk 0:02:46]}  Rfd8 {[%clk 0:02:35]} 15. Nd2 {[%clk 0:02:46]}  Rac8 {[%clk 0:02:28]} 16. Ne4 {[%clk 0:02:39]}  Rb8 {[%clk 0:02:20]} 17. Nc5 {[%clk 0:02:37]}  Bc8 {[%clk 0:02:20]} 18. Rac1 {[%clk 0:02:35]}  b6 {[%clk 0:02:19]} 19. Ne4 {[%clk 0:02:36]}  Nce7 {[%clk 0:02:19]} 20. d4 {[%clk 0:02:20]}  exd4 {[%clk 0:02:17]} 21. Bxd4 {[%clk 0:02:17]}  c5 {[%clk 0:02:17]} 22. Bb2 {[%clk 0:02:17]}  Be6 {[%clk 0:02:18]} 23. Bc4 {[%clk 0:02:09]}  Nc7 {[%clk 0:02:09]} 24. Rfd1 {[%clk 0:02:05]}  Ned5 {[%clk 0:02:04]} 25. Rd2 {[%clk 0:01:57]}  Rd7 {[%clk 0:02:03]} 26. Rcd1 {[%clk 0:01:50]}  Rbd8 {[%clk 0:02:04]} 27. h3 {[%clk 0:01:33]}  h6 {[%clk 0:02:00]} 28. Ng3 {[%clk 0:01:24]}  Kh8 {[%clk 0:01:48]} 29. Nf5 {[%clk 0:01:18]}  Qg6 {[%clk 0:01:32]} 30. Ng3 {[%clk 0:01:13]}  Qxc2 {[%clk 0:01:21]} 31. Rxc2 {[%clk 0:01:13]}  Ne7 {[%clk 0:01:19]} 32. Rxd7 {[%clk 0:01:08]}  Rxd7 {[%clk 0:01:20]} 33. f3 {[%clk 0:01:02]}  Bxc4 {[%clk 0:01:16]} 34. bxc4 {[%clk 0:01:02]}  a4 {[%clk 0:01:16]} 35. Kf2 {[%clk 0:00:59]}  Nc6 {[%clk 0:01:13]} 36. Ke2 {[%clk 0:00:55]}  Kg8 {[%clk 0:01:06]} 37. Ne4 {[%clk 0:00:56]}  Na5 {[%clk 0:01:03]} 38. Nd2 {[%clk 0:00:50]}  Ne8 {[%clk 0:00:55]} 39. Bc3 {[%clk 0:00:50]}  Nb3 {[%clk 0:00:52]} 40. Rb2 {[%clk 0:00:43]}  Nd6 {[%clk 0:00:45]} 41. Nxb3 {[%clk 0:00:43]}  axb3 {[%clk 0:00:39]} 42. Rxb3 {[%clk 0:00:43]}  Nxc4 {[%clk 0:00:40]} 43. g4 {[%clk 0:00:39]}  Kf7 {[%clk 0:00:40]} 44. h4 {[%clk 0:00:38]}  h5 {[%clk 0:00:37]} 45. gxh5 {[%clk 0:00:38]}  Ke6 {[%clk 0:00:35]} 46. e4 {[%clk 0:00:36]}  Ra7 {[%clk 0:00:21]} 47. Bb2 {[%clk 0:00:35]}  Kd6 {[%clk 0:00:19]} 48. Bc1 {[%clk 0:00:32]}  Kc6 {[%clk 0:00:18]} 49. f4 {[%clk 0:00:32]}  Re7 {[%clk 0:00:15]} 50. Kd3 {[%clk 0:00:30]}  b5 {[%clk 0:00:15]} 51. Rb1 {[%clk 0:00:22]}  Rd7+ {[%clk 0:00:13]} 52. Ke2 {[%clk 0:00:22]}  Rd4 {[%clk 0:00:13]} 53. e5 {[%clk 0:00:20]}  fxe5 {[%clk 0:00:12]} 54. fxe5 {[%clk 0:00:20]}  Rxh4 {[%clk 0:00:12]} 55. e6 {[%clk 0:00:17]}  Re4+ {[%clk 0:00:07]} 56. Kd3 {[%clk 0:00:16]}  Rxe6 {[%clk 0:00:08]} 57. a4 {[%clk 0:00:16]}  Nd6 {[%clk 0:00:06]} 58. axb5+ {[%clk 0:00:16]}  Nxb5 {[%clk 0:00:07]} 59. Bb2 {[%clk 0:00:16]}  Rh6 {[%clk 0:00:06]} 60. Rh1 {[%clk 0:00:16]}  Rh7 {[%clk 0:00:07]} 61. Ke4 {[%clk 0:00:14]}  Nd6+ {[%clk 0:00:07]} 62. Kf4 {[%clk 0:00:14]}  Nc4 {[%clk 0:00:06]} 63. Bc3 {[%clk 0:00:13]}  Nd6 {[%clk 0:00:06]} 64. Be5 {[%clk 0:00:13]}  Nf7 {[%clk 0:00:06]} 65. Bc3 {[%clk 0:00:12]}  Kd5 {[%clk 0:00:06]} 66. Kf5 {[%clk 0:00:12]}  Nh8 {[%clk 0:00:06]} 67. Kg5 {[%clk 0:00:12]}  Kc4 {[%clk 0:00:06]} 68. Ba1 {[%clk 0:00:12]}  Kd3 {[%clk 0:00:07]} 69. Rd1+ {[%clk 0:00:12]}  Ke2 {[%clk 0:00:06]} 70. Rd7 {[%clk 0:00:12]}  c4 {[%clk 0:00:07]} 71. Rxg7 {[%clk 0:00:12]}  Rxg7+ {[%clk 0:00:05]} 72. Bxg7 {[%clk 0:00:13]}  Nf7+ {[%clk 0:00:06]} 73. Kg6 {[%clk 0:00:13]}  Nd8 {[%clk 0:00:02]} 74. Kf5 {[%clk 0:00:10]}  Nf7 {[%clk 0:00:01]} 75. Kg6 {[%clk 0:00:10]}  Nd8 {[%clk 0:00:01]} 76. h6 {[%clk 0:00:10]}  Ne6 {[%clk 0:00:01]} 77. h7 {[%clk 0:00:09]}  Nf4+ {[%clk 0:00:02]} 78. Kf5 {[%clk 0:00:09]}  c3 {[%clk 0:00:02]} 79. Bxc3 {[%clk 0:00:09]}  Nd5 {[%clk 0:00:02]} 80. Be5 {[%clk 0:00:08]}  Ne3+ {[%clk 0:00:03]} 81. Ke6 {[%clk 0:00:08]}  Kd3 {[%clk 0:00:03]} 82. h8=Q {[%clk 0:00:09]}  Ke4 {[%clk 0:00:04]} 83. Qh7+ {[%clk 0:00:09]}  Kf3 {[%clk 0:00:04]} 84. Bd4 {[%clk 0:00:09]}  Ke2 {[%clk 0:00:05]} 85. Qe4 {[%clk 0:00:09]} 1-0


[Site "https://www.chess.com"]

[Event "Titled Tuesday Blitz May 10 Early 2022"]
[White "Sharbaf, Mohsen"]
[Black "Zemlyanskii, Ivan"]
[WhiteFideId "12501808"]
[BlackFideId "24249971"]
[WhiteElo "2187"]
[BlackElo "1815"]
[Result "0-1"]
[Round "11"]
[TimeControl "180+1"]
[Date "2022.05.11"]
[WhiteClock "0:01:19"]
[BlackClock "0:01:02"]

1. c4 {[%clk 0:03:00]}  e5 {[%clk 0:02:58]} 2. g3 {[%clk 0:03:00]}  c6 {[%clk 0:02:57]} 3. d4 {[%clk 0:02:59]}  e4 {[%clk 0:02:55]} 4. Bg2 {[%clk 0:02:54]}  d5 {[%clk 0:02:52]} 5. cxd5 {[%clk 0:02:54]}  cxd5 {[%clk 0:02:52]} 6. Nc3 {[%clk 0:02:54]}  Nc6 {[%clk 0:02:50]} 7. Nh3 {[%clk 0:02:54]}  Nf6 {[%clk 0:02:47]} 8. Bg5 {[%clk 0:02:53]}  Be7 {[%clk 0:02:36]} 9. Nf4 {[%clk 0:02:49]}  Be6 {[%clk 0:02:31]} 10. e3 {[%clk 0:02:48]}  O-O {[%clk 0:02:26]} 11. O-O {[%clk 0:02:46]}  Qd7 {[%clk 0:02:14]} 12. Bxf6 {[%clk 0:02:44]}  Bxf6 {[%clk 0:02:13]} 13. f3 {[%clk 0:02:44]}  exf3 {[%clk 0:02:10]} 14. Qxf3 {[%clk 0:02:44]}  Bg5 {[%clk 0:02:01]} 15. Nfxd5 {[%clk 0:02:39]}  Rad8 {[%clk 0:01:57]} 16. Nf4 {[%clk 0:02:31]}  Bg4 {[%clk 0:01:52]} 17. Qd5 {[%clk 0:02:25]}  Qe7 {[%clk 0:01:49]} 18. Qe4 {[%clk 0:02:21]}  Qd7 {[%clk 0:01:45]} 19. Nfd5 {[%clk 0:02:15]}  Rfe8 {[%clk 0:01:43]} 20. Qd3 {[%clk 0:02:06]}  Be6 {[%clk 0:01:34]} 21. Rae1 {[%clk 0:02:04]}  Bh3 {[%clk 0:01:17]} 22. Bxh3 {[%clk 0:01:45]}  Qxh3 {[%clk 0:01:16]} 23. Qf5 {[%clk 0:01:46]}  Qxf5 {[%clk 0:01:09]} 24. Rxf5 {[%clk 0:01:45]}  Nxd4 {[%clk 0:01:10]} 25. Rxg5 {[%clk 0:01:42]}  Nf3+ {[%clk 0:01:10]} 26. Kf2 {[%clk 0:01:42]}  Nxg5 {[%clk 0:01:10]} 27. h4 {[%clk 0:01:36]}  Ne6 {[%clk 0:01:08]} 28. Nf4 {[%clk 0:01:29]}  Nxf4 {[%clk 0:01:05]} 29. gxf4 {[%clk 0:01:29]}  Rd2+ {[%clk 0:01:05]} 30. Re2 {[%clk 0:01:29]}  Rxe2+ {[%clk 0:01:06]} 31. Kxe2 {[%clk 0:01:29]}  Re6 {[%clk 0:01:04]} 32. e4 {[%clk 0:01:28]}  Rh6 {[%clk 0:01:04]} 33. Nb5 {[%clk 0:01:24]}  Rb6 {[%clk 0:01:02]} 34. Nxa7 {[%clk 0:01:19]}  Rxb2+ {[%clk 0:01:02]} 0-1


[Site "https://www.chess.com"]

[Event "Titled Tuesday Blitz May 10 Early 2022"]
[White "Shtyka, Sergey"]
[Black "Cagara, Paulina"]
[WhiteFideId "4138465"]
[BlackFideId "1124870"]
[WhiteElo "2014"]
[BlackElo "1800"]
[Result "1-0"]
[Round "11"]
[TimeControl "180+1"]
[Date "2022.05.11"]
[WhiteClock "0:00:54"]
[BlackClock "0:00:48"]

1. e4 {[%clk 0:02:50]}  c6 {[%clk 0:02:58]} 2. Nf3 {[%clk 0:02:49]}  d5 {[%clk 0:02:58]} 3. Nc3 {[%clk 0:02:49]}  Bg4 {[%clk 0:02:57]} 4. h3 {[%clk 0:02:49]}  Bxf3 {[%clk 0:02:57]} 5. Qxf3 {[%clk 0:02:49]}  e6 {[%clk 0:02:57]} 6. a3 {[%clk 0:02:48]}  Nd7 {[%clk 0:02:56]} 7. d3 {[%clk 0:02:48]}  Ngf6 {[%clk 0:02:55]} 8. g3 {[%clk 0:02:48]}  dxe4 {[%clk 0:02:53]} 9. dxe4 {[%clk 0:02:48]}  Ne5 {[%clk 0:02:52]} 10. Qe2 {[%clk 0:02:47]}  Bc5 {[%clk 0:02:49]} 11. Bg2 {[%clk 0:02:44]}  O-O {[%clk 0:02:48]} 12. O-O {[%clk 0:02:44]}  b5 {[%clk 0:02:44]} 13. Kh2 {[%clk 0:02:43]}  a5 {[%clk 0:02:41]} 14. f4 {[%clk 0:02:39]}  Nc4 {[%clk 0:02:41]} 15. b3 {[%clk 0:02:19]}  Nb6 {[%clk 0:02:39]} 16. e5 {[%clk 0:02:16]}  Nfd5 {[%clk 0:02:38]} 17. Ne4 {[%clk 0:02:16]}  Bd4 {[%clk 0:02:35]} 18. Rb1 {[%clk 0:02:15]}  a4 {[%clk 0:02:24]} 19. c4 {[%clk 0:02:12]}  bxc4 {[%clk 0:02:18]} 20. bxc4 {[%clk 0:02:12]}  Nc3 {[%clk 0:02:10]} 21. Nxc3 {[%clk 0:02:11]}  Bxc3 {[%clk 0:02:10]} 22. Be3 {[%clk 0:02:09]}  Bd4 {[%clk 0:02:06]} 23. Rfd1 {[%clk 0:02:02]}  c5 {[%clk 0:02:05]} 24. Bxa8 {[%clk 0:01:58]}  Nxa8 {[%clk 0:02:05]} 25. Bxd4 {[%clk 0:01:56]}  cxd4 {[%clk 0:02:04]} 26. Qd2 {[%clk 0:01:50]}  Qe7 {[%clk 0:02:02]} 27. Rb4 {[%clk 0:01:42]}  f6 {[%clk 0:01:55]} 28. Qxd4 {[%clk 0:01:40]}  fxe5 {[%clk 0:01:54]} 29. Qxe5 {[%clk 0:01:40]}  h6 {[%clk 0:01:42]} 30. Rd6 {[%clk 0:01:22]}  Re8 {[%clk 0:01:27]} 31. f5 {[%clk 0:01:15]}  Qg5 {[%clk 0:01:17]} 32. Qf4 {[%clk 0:00:59]}  e5 {[%clk 0:01:00]} 33. Qxg5 {[%clk 0:00:58]}  hxg5 {[%clk 0:01:00]} 34. c5 {[%clk 0:00:54]}  e4 {[%clk 0:00:59]} 35. Rdd4 {[%clk 0:00:54]}  e3 {[%clk 0:00:59]} 36. Re4 {[%clk 0:00:54]}  Nc7 {[%clk 0:00:47]} 37. Rxe8+ {[%clk 0:00:53]}  Nxe8 {[%clk 0:00:48]} 38. Re4 {[%clk 0:00:54]} 1-0


[Site "https://www.chess.com"]

[Event "Titled Tuesday Blitz May 10 Early 2022"]
[White "Shuvalov, Evgenij"]
[Black "Sanchez, Robert"]
[WhiteFideId "4187237"]
[BlackFideId "2034360"]
[WhiteElo "2053"]
[BlackElo "2193"]
[Result "1-0"]
[Round "11"]
[TimeControl "180+1"]
[Date "2022.05.11"]
[WhiteClock "0:00:23"]
[BlackClock "0:00:15"]

1. Nf3 {[%clk 0:03:00]}  d5 {[%clk 0:03:00]} 2. c4 {[%clk 0:03:00]}  c6 {[%clk 0:03:00]} 3. g3 {[%clk 0:03:00]}  Nf6 {[%clk 0:03:00]} 4. Bg2 {[%clk 0:03:01]}  g6 {[%clk 0:03:01]} 5. b3 {[%clk 0:03:01]}  Bg7 {[%clk 0:03:01]} 6. Bb2 {[%clk 0:03:01]}  O-O {[%clk 0:03:01]} 7. O-O {[%clk 0:03:02]}  Bg4 {[%clk 0:03:00]} 8. d3 {[%clk 0:03:01]}  Bxf3 {[%clk 0:03:00]} 9. Bxf3 {[%clk 0:03:02]}  e6 {[%clk 0:03:01]} 10. Nd2 {[%clk 0:03:01]}  Nbd7 {[%clk 0:03:01]} 11. Bg2 {[%clk 0:03:00]}  Re8 {[%clk 0:03:01]} 12. d4 {[%clk 0:02:52]}  a5 {[%clk 0:02:53]} 13. e3 {[%clk 0:02:50]}  Qb6 {[%clk 0:02:49]} 14. Bc3 {[%clk 0:02:44]}  e5 {[%clk 0:02:39]} 15. Rc1 {[%clk 0:02:31]}  exd4 {[%clk 0:02:36]} 16. Bxd4 {[%clk 0:02:31]}  Qa6 {[%clk 0:02:16]} 17. cxd5 {[%clk 0:02:30]}  cxd5 {[%clk 0:02:16]} 18. Re1 {[%clk 0:02:25]}  Ne5 {[%clk 0:02:08]} 19. Bf1 {[%clk 0:02:22]}  Qe6 {[%clk 0:01:59]} 20. Nf3 {[%clk 0:02:08]}  Nc6 {[%clk 0:01:56]} 21. Ba1 {[%clk 0:02:00]}  Ne4 {[%clk 0:01:57]} 22. Bxg7 {[%clk 0:01:59]}  Kxg7 {[%clk 0:01:58]} 23. Nd4 {[%clk 0:01:59]}  Qf6 {[%clk 0:01:48]} 24. f3 {[%clk 0:01:48]}  Ng5 {[%clk 0:01:44]} 25. Kg2 {[%clk 0:01:37]}  Rxe3 {[%clk 0:01:36]} 26. Rxe3 {[%clk 0:01:32]}  Nxd4 {[%clk 0:01:36]} 27. Be2 {[%clk 0:01:17]}  Nf5 {[%clk 0:01:33]} 28. Rd3 {[%clk 0:01:13]}  d4 {[%clk 0:01:34]} 29. Kh1 {[%clk 0:01:06]}  Re8 {[%clk 0:01:26]} 30. Qd2 {[%clk 0:01:00]}  Nh3 {[%clk 0:01:20]} 31. Kg2 {[%clk 0:00:54]}  Ne3+ {[%clk 0:01:10]} 32. Kxh3 {[%clk 0:00:41]}  h5 {[%clk 0:00:48]} 33. Rxd4 {[%clk 0:00:36]}  Qf5+ {[%clk 0:00:35]} 34. g4 {[%clk 0:00:36]}  hxg4+ {[%clk 0:00:35]} 35. Kg3 {[%clk 0:00:33]}  gxf3 {[%clk 0:00:18]} 36. Bxf3 {[%clk 0:00:31]}  Qg5+ {[%clk 0:00:17]} 37. Kf2 {[%clk 0:00:27]}  Ng4+ {[%clk 0:00:15]} 38. Bxg4 {[%clk 0:00:25]}  Qh4+ {[%clk 0:00:15]} 39. Kg2 {[%clk 0:00:23]} 1-0


[Site "https://www.chess.com"]

[Event "Titled Tuesday Blitz May 10 Early 2022"]
[White "Skliarov, Viktor"]
[Black "Rodchenkov, Sergey D."]
[WhiteFideId "14106736"]
[BlackFideId "4168712"]
[WhiteElo "2229"]
[BlackElo "2306"]
[Result "1-0"]
[Round "11"]
[TimeControl "180+1"]
[Date "2022.05.11"]
[WhiteClock "0:01:44"]
[BlackClock "0:02:16"]

1. e4 {[%clk 0:03:00]}  c5 {[%clk 0:03:00]} 2. Nf3 {[%clk 0:03:00]}  d6 {[%clk 0:03:00]} 3. d4 {[%clk 0:03:01]}  cxd4 {[%clk 0:03:01]} 4. Qxd4 {[%clk 0:03:01]}  Nc6 {[%clk 0:03:01]} 5. Bb5 {[%clk 0:03:01]}  Bd7 {[%clk 0:03:02]} 6. Bxc6 {[%clk 0:03:02]}  Bxc6 {[%clk 0:03:03]} 7. Nc3 {[%clk 0:03:03]}  Nf6 {[%clk 0:03:03]} 8. Bg5 {[%clk 0:03:03]}  e6 {[%clk 0:03:04]} 9. O-O-O {[%clk 0:03:03]}  Be7 {[%clk 0:03:04]} 10. Rhe1 {[%clk 0:03:04]}  O-O {[%clk 0:03:04]} 11. Kb1 {[%clk 0:03:04]}  Qc7 {[%clk 0:03:03]} 12. Qd2 {[%clk 0:03:04]}  Rfd8 {[%clk 0:03:03]} 13. Nd4 {[%clk 0:03:04]}  Rab8 {[%clk 0:03:04]} 14. f3 {[%clk 0:03:01]}  b5 {[%clk 0:03:03]} 15. g4 {[%clk 0:03:01]}  b4 {[%clk 0:03:03]} 16. Nce2 {[%clk 0:03:02]}  Ba8 {[%clk 0:03:03]} 17. h4 {[%clk 0:02:56]}  h6 {[%clk 0:03:01]} 18. Bxf6 {[%clk 0:02:51]}  Bxf6 {[%clk 0:03:02]} 19. g5 {[%clk 0:02:52]}  hxg5 {[%clk 0:02:42]} 20. hxg5 {[%clk 0:02:51]}  Be7 {[%clk 0:02:43]} 21. g6 {[%clk 0:02:50]}  Bf6 {[%clk 0:02:43]} 22. Rh1 {[%clk 0:02:31]}  Qe7 {[%clk 0:02:36]} 23. Nf4 {[%clk 0:01:45]}  Bxd4 {[%clk 0:02:23]} 24. Rh8+ {[%clk 0:01:44]}  Kxh8 {[%clk 0:02:21]} 25. Qh2+ {[%clk 0:01:44]}  Kg8 {[%clk 0:02:17]} 26. Qh7+ {[%clk 0:01:43]}  Kf8 {[%clk 0:02:16]} 27. Qh8# {[%clk 0:01:44]} 1-0


[Site "https://www.chess.com"]

[Event "Titled Tuesday Blitz May 10 Early 2022"]
[White "Stankovic, Ivan G"]
[Black "Gallego Alcaraz, Andres Felipe"]
[WhiteFideId "902837"]
[BlackFideId "4402669"]
[WhiteElo "2195"]
[BlackElo "2340"]
[Result "1-0"]
[Round "11"]
[TimeControl "180+1"]
[Date "2022.05.11"]
[WhiteClock "0:00:04"]
[BlackClock "0:00:18"]

1. e4 {[%clk 0:03:00]}  c5 {[%clk 0:02:59]} 2. c4 {[%clk 0:03:00]}  g6 {[%clk 0:02:59]} 3. Nc3 {[%clk 0:03:01]}  Nc6 {[%clk 0:03:00]} 4. g3 {[%clk 0:03:01]}  Bg7 {[%clk 0:03:00]} 5. Bg2 {[%clk 0:03:01]}  d6 {[%clk 0:03:01]} 6. d3 {[%clk 0:03:01]}  Nf6 {[%clk 0:03:01]} 7. Nge2 {[%clk 0:03:00]}  O-O {[%clk 0:03:01]} 8. O-O {[%clk 0:03:01]}  Ne8 {[%clk 0:03:01]} 9. Be3 {[%clk 0:03:00]}  Nc7 {[%clk 0:02:59]} 10. d4 {[%clk 0:03:00]}  cxd4 {[%clk 0:02:59]} 11. Nxd4 {[%clk 0:03:01]}  Nxd4 {[%clk 0:02:58]} 12. Bxd4 {[%clk 0:03:01]}  Bxd4 {[%clk 0:02:58]} 13. Qxd4 {[%clk 0:03:02]}  Ne6 {[%clk 0:02:59]} 14. Qd3 {[%clk 0:03:02]}  Nc5 {[%clk 0:02:58]} 15. Qc2 {[%clk 0:03:02]}  Be6 {[%clk 0:02:56]} 16. b3 {[%clk 0:03:01]}  Qb6 {[%clk 0:02:55]} 17. h4 {[%clk 0:02:54]}  Rac8 {[%clk 0:02:55]} 18. h5 {[%clk 0:02:52]}  a5 {[%clk 0:02:53]} 19. Rab1 {[%clk 0:02:44]}  f6 {[%clk 0:02:51]} 20. Nd5 {[%clk 0:02:30]}  Bxd5 {[%clk 0:02:48]} 21. exd5 {[%clk 0:02:30]}  Kg7 {[%clk 0:02:45]} 22. Rfe1 {[%clk 0:02:26]}  Qd8 {[%clk 0:02:40]} 23. Bh3 {[%clk 0:02:25]}  Rc7 {[%clk 0:02:39]} 24. Re3 {[%clk 0:02:21]}  b6 {[%clk 0:02:37]} 25. Rbe1 {[%clk 0:02:20]}  Rf7 {[%clk 0:02:31]} 26. a3 {[%clk 0:02:16]}  Nb7 {[%clk 0:02:11]} 27. Be6 {[%clk 0:02:10]}  Rf8 {[%clk 0:02:11]} 28. Re4 {[%clk 0:01:52]}  Nc5 {[%clk 0:02:09]} 29. Rh4 {[%clk 0:01:51]}  g5 {[%clk 0:02:04]} 30. h6+ {[%clk 0:01:51]}  Kh8 {[%clk 0:02:04]} 31. Rd4 {[%clk 0:01:46]}  Qe8 {[%clk 0:01:57]} 32. b4 {[%clk 0:01:40]}  axb4 {[%clk 0:01:56]} 33. axb4 {[%clk 0:01:40]}  Nxe6 {[%clk 0:01:56]} 34. Rxe6 {[%clk 0:01:37]}  Qg6 {[%clk 0:01:37]} 35. Rde4 {[%clk 0:01:26]}  Ra8 {[%clk 0:00:50]} 36. Qc3 {[%clk 0:01:06]}  Raa7 {[%clk 0:00:43]} 37. Rxd6 {[%clk 0:00:22]}  exd6 {[%clk 0:00:25]} 38. Qxf6+ {[%clk 0:00:19]}  Rg7 {[%clk 0:00:25]} 39. hxg7+ {[%clk 0:00:11]}  Rxg7 {[%clk 0:00:25]} 40. Qxg6 {[%clk 0:00:03]}  hxg6 {[%clk 0:00:25]} 41. Re6 {[%clk 0:00:03]}  Rc7 {[%clk 0:00:26]} 42. Rxd6 {[%clk 0:00:03]}  Kg7 {[%clk 0:00:21]} 43. Rxb6 {[%clk 0:00:03]}  Rxc4 {[%clk 0:00:22]} 44. d6 {[%clk 0:00:04]}  Rd4 {[%clk 0:00:22]} 45. Kg2 {[%clk 0:00:04]}  Kf6 {[%clk 0:00:23]} 46. Kf3 {[%clk 0:00:05]}  Rd3+ {[%clk 0:00:22]} 47. Ke4 {[%clk 0:00:05]}  Rd2 {[%clk 0:00:23]} 48. d7+ {[%clk 0:00:05]}  Ke7 {[%clk 0:00:23]} 49. Ke3 {[%clk 0:00:05]}  Rb2 {[%clk 0:00:22]} 50. Rxg6 {[%clk 0:00:05]}  Rb3+ {[%clk 0:00:22]} 51. Ke2 {[%clk 0:00:06]}  Rb2+ {[%clk 0:00:23]} 52. Kf1 {[%clk 0:00:06]}  Rxb4 {[%clk 0:00:23]} 53. Rg7+ {[%clk 0:00:06]}  Kd8 {[%clk 0:00:23]} 54. Rxg5 {[%clk 0:00:06]}  Kxd7 {[%clk 0:00:23]} 55. Re5 {[%clk 0:00:07]}  Kd6 {[%clk 0:00:23]} 56. Re2 {[%clk 0:00:07]}  Kd7 {[%clk 0:00:21]} 57. f4 {[%clk 0:00:08]}  Rb3 {[%clk 0:00:20]} 58. Kf2 {[%clk 0:00:09]}  Kd6 {[%clk 0:00:20]} 59. g4 {[%clk 0:00:09]}  Kd7 {[%clk 0:00:20]} 60. g5 {[%clk 0:00:09]}  Kd6 {[%clk 0:00:20]} 61. g6 {[%clk 0:00:09]}  Kd7 {[%clk 0:00:19]} 62. Re3 {[%clk 0:00:09]}  Rb6 {[%clk 0:00:17]} 63. f5 {[%clk 0:00:07]}  Rf6 {[%clk 0:00:17]} 64. g7 {[%clk 0:00:02]}  Rxf5+ {[%clk 0:00:17]} 65. Rf3 {[%clk 0:00:02]}  Rg5 {[%clk 0:00:18]} 66. Rg3 {[%clk 0:00:03]}  Rf5+ {[%clk 0:00:18]} 67. Kg2 {[%clk 0:00:04]} 1-0


[Site "https://www.chess.com"]

[Event "Titled Tuesday Blitz May 10 Early 2022"]
[White "Stevens, Christian"]
[Black "Kwon, Sehyun"]
[WhiteFideId "2604450"]
[BlackFideId "13203088"]
[WhiteElo "2481"]
[BlackElo "1778"]
[Result "0-1"]
[Round "11"]
[TimeControl "180+1"]
[Date "2022.05.11"]
[WhiteClock "0:00:02"]
[BlackClock "0:00:01"]

1. d4 {[%clk 0:03:00]}  g6 {[%clk 0:03:00]} 2. e4 {[%clk 0:02:59]}  Bg7 {[%clk 0:03:00]} 3. Nc3 {[%clk 0:02:58]}  d6 {[%clk 0:03:01]} 4. Be3 {[%clk 0:02:57]}  a6 {[%clk 0:03:01]} 5. Qd2 {[%clk 0:02:57]}  b5 {[%clk 0:03:02]} 6. f3 {[%clk 0:02:55]}  Bb7 {[%clk 0:03:02]} 7. g4 {[%clk 0:02:53]}  Nd7 {[%clk 0:03:02]} 8. h4 {[%clk 0:02:51]}  h5 {[%clk 0:03:01]} 9. g5 {[%clk 0:02:43]}  e6 {[%clk 0:03:01]} 10. Nh3 {[%clk 0:02:38]}  Ne7 {[%clk 0:03:01]} 11. Bg2 {[%clk 0:02:32]}  Nb6 {[%clk 0:02:59]} 12. b3 {[%clk 0:02:31]}  Nd7 {[%clk 0:02:57]} 13. O-O {[%clk 0:02:27]}  O-O {[%clk 0:02:56]} 14. Rad1 {[%clk 0:02:23]}  Rc8 {[%clk 0:02:49]} 15. Ne2 {[%clk 0:02:21]}  d5 {[%clk 0:02:46]} 16. c3 {[%clk 0:02:15]}  c5 {[%clk 0:02:39]} 17. Ng3 {[%clk 0:02:12]}  Qa5 {[%clk 0:02:33]} 18. e5 {[%clk 0:01:40]}  cxd4 {[%clk 0:02:32]} 19. cxd4 {[%clk 0:01:39]}  b4 {[%clk 0:02:21]} 20. Nf4 {[%clk 0:01:35]}  Rc3 {[%clk 0:02:19]} 21. Nge2 {[%clk 0:01:33]}  Nf5 {[%clk 0:02:10]} 22. Nxc3 {[%clk 0:01:28]}  bxc3 {[%clk 0:02:10]} 23. Qf2 {[%clk 0:01:28]}  Rc8 {[%clk 0:01:55]} 24. Rc1 {[%clk 0:01:19]}  Nxe3 {[%clk 0:01:52]} 25. Qxe3 {[%clk 0:01:18]}  Bf8 {[%clk 0:01:51]} 26. Rc2 {[%clk 0:01:12]}  Ba3 {[%clk 0:01:49]} 27. Qd3 {[%clk 0:00:45]}  Kg7 {[%clk 0:01:39]} 28. Bh3 {[%clk 0:00:43]}  Nf8 {[%clk 0:01:31]} 29. Ne2 {[%clk 0:00:40]}  Bb4 {[%clk 0:01:30]} 30. Rfc1 {[%clk 0:00:38]}  Ba3 {[%clk 0:01:24]} 31. Rd1 {[%clk 0:00:33]}  Bb4 {[%clk 0:01:18]} 32. a4 {[%clk 0:00:31]}  Qb6 {[%clk 0:01:14]} 33. Rdc1 {[%clk 0:00:24]}  Ba3 {[%clk 0:01:03]} 34. Rxc3 {[%clk 0:00:22]}  Bxc1 {[%clk 0:01:01]} 35. Rxc8 {[%clk 0:00:22]}  Bxc8 {[%clk 0:01:01]} 36. Nxc1 {[%clk 0:00:21]}  a5 {[%clk 0:00:55]} 37. Qc3 {[%clk 0:00:17]}  Ba6 {[%clk 0:00:55]} 38. Kf2 {[%clk 0:00:15]}  Nd7 {[%clk 0:00:53]} 39. f4 {[%clk 0:00:12]}  Nb8 {[%clk 0:00:53]} 40. Ke3 {[%clk 0:00:12]}  Nc6 {[%clk 0:00:54]} 41. Na2 {[%clk 0:00:11]}  Ne7 {[%clk 0:00:37]} 42. b4 {[%clk 0:00:08]}  axb4 {[%clk 0:00:35]} 43. Qxb4 {[%clk 0:00:07]}  Qc7 {[%clk 0:00:32]} 44. Nc3 {[%clk 0:00:07]}  Kg8 {[%clk 0:00:12]} 45. Qc5 {[%clk 0:00:07]}  Qb7 {[%clk 0:00:10]} 46. Nb5 {[%clk 0:00:06]}  Nc6 {[%clk 0:00:06]} 47. Bf1 {[%clk 0:00:06]}  Ne7 {[%clk 0:00:05]} 48. Bd3 {[%clk 0:00:05]}  Nc6 {[%clk 0:00:06]} 49. Qd6 {[%clk 0:00:05]}  Na5 {[%clk 0:00:04]} 50. Qd8+ {[%clk 0:00:04]}  Kg7 {[%clk 0:00:03]} 51. Qxa5 {[%clk 0:00:05]}  Qc6 {[%clk 0:00:02]} 52. Qb4 {[%clk 0:00:04]}  Qc1+ {[%clk 0:00:02]} 53. Qd2 {[%clk 0:00:04]}  Qg1+ {[%clk 0:00:02]} 54. Qf2 {[%clk 0:00:04]}  Qc1+ {[%clk 0:00:02]} 55. Kf3 {[%clk 0:00:04]}  Qh1+ {[%clk 0:00:02]} 56. Kg3 {[%clk 0:00:04]}  Qd1 {[%clk 0:00:02]} 57. Bf1 {[%clk 0:00:04]}  Qxa4 {[%clk 0:00:02]} 58. Nd6 {[%clk 0:00:02]}  Qb3+ {[%clk 0:00:01]} 0-1


[Site "https://www.chess.com"]